bitfinex-derivatives/quotes_BTCF0:USTF0_20250918
["timestamp","ask_amount","ask_price","bid_price","bid_amount"]
[1758163420828,0.65378882,116680.0,116670.0,0.35917261]
[1758163422531,0.65378882,116680.0,116670.0,0.09731326]
[1758163423830,0.65378882,116680.0,116670.0,0.35917261]
[1758163425031,0.65378882,116680.0,116670.0,0.09731326]
[1758163426432,0.65378882,116680.0,116670.0,0.03561]
[1758163429137,0.65378882,116680.0,116670.0,0.09730965]
[1758163429427,0.65704882,116680.0,116670.0,0.08458965]
[1758163429934,0.39192947,116680.0,116670.0,0.09751965]
[1758163430335,0.65378882,116680.0,116670.0,0.09751965]
[1758163435437,0.39192947,116680.0,116670.0,0.09751965]
[1758163435634,0.65378882,116680.0,116670.0,0.09751965]
[1758163436737,0.65378882,116680.0,116670.0,0.03582]
[1758163438734,0.65378882,116680.0,116670.0,0.09751965]
[1758163438937,0.65378882,116680.0,116670.0,0.03582]
[1758163439440,0.65378882,116680.0,116670.0,0.09751965]
[1758163439640,0.65378882,116680.0,116670.0,0.03582]
[1758163440245,0.39192947,116680.0,116670.0,0.03582]
[1758163440541,0.65378882,116680.0,116670.0,0.03582]
[1758163441451,0.39192947,116680.0,116670.0,0.03582]
[1758163441746,0.65378882,116680.0,116670.0,0.03582]
[1758163445948,1.43290882,116680.0,116670.0,0.03582]
[1758163447547,1.17104947,116680.0,116670.0,0.03582]
[1758163447745,1.43290882,116680.0,116670.0,0.03582]
[1758163448652,1.43290882,116680.0,116670.0,0.09751965]
[1758163451750,1.17104947,116680.0,116670.0,0.09751965]
[1758163451954,1.43290882,116680.0,116670.0,0.09751965]
[1758163452452,0.0001,116680.0,116670.0,0.8095387]
[1758163452658,0.0001,116680.0,116670.0,1.24735267]
[1758163452954,0.0001,116680.0,116670.0,1.25611484]
[1758163453754,0.0001,116680.0,116670.0,1.2559772]
[1758163457964,0.0001,116680.0,116670.0,1.4459772]
[1758163458160,0.0001,116680.0,116670.0,1.79343443]
[1758163458372,0.02012936,116690.0,116680.0,0.03542]
[1758163458555,0.02012936,116690.0,116680.0,1.2585841]
[1758163460064,0.02012936,116690.0,116680.0,1.2605841]
[1758163460457,0.02012936,116690.0,116680.0,0.99879357]
[1758163460663,0.02012936,116690.0,116680.0,1.77779357]
[1758163461066,0.02012936,116690.0,116680.0,1.77679357]
[1758163461465,0.02012936,116690.0,116680.0,1.77579357]
[1758163461664,0.02012936,116690.0,116680.0,1.77679357]
[1758163462064,0.02012936,116690.0,116680.0,2.0385841]
[1758163462266,0.02012936,116690.0,116680.0,2.2885841]
[1758163462567,0.02012936,116690.0,116680.0,2.3685841]
[1758163464569,0.02012936,116690.0,116680.0,2.8585841]
[1758163464773,0.02012936,116690.0,116680.0,2.6185841]
[1758163466280,1.44408004,116710.0,116700.0,0.01381]
[1758163466574,1.44408004,116710.0,116700.0,0.55900106]
[1758163467373,1.18228951,116710.0,116700.0,0.55900106]
[1758163471478,1.18228951,116710.0,116700.0,0.03542]
[1758163471681,1.18228951,116710.0,116700.0,0.55900106]
[1758163472478,1.44408004,116710.0,116700.0,0.55900106]
[1758163474571,1.18228951,116710.0,116700.0,0.55900106]
[1758163474971,1.44408004,116710.0,116700.0,0.56750094]
[1758163475171,1.44408004,116710.0,116700.0,0.55900106]
[1758163477584,1.18228951,116710.0,116700.0,0.55900106]
[1758163477782,1.18238951,116710.0,116700.0,0.55900106]
[1758163480590,1.18222951,116710.0,116700.0,0.55900106]
[1758163482692,1.44402004,116710.0,116700.0,0.55900106]
[1758163486189,1.44402004,116710.0,116700.0,0.29721053]
[1758163486396,1.44402004,116710.0,116700.0,0.09689676]
[1758163486595,1.44402004,116710.0,116700.0,0.55900106]
[1758163487192,1.44402004,116710.0,116700.0,0.62047782]
[1758163489395,1.42370053,116710.0,116700.0,0.09689676]
[1758163489588,1.42370053,116710.0,116700.0,0.62047782]
[1758163493493,1.44334518,116710.0,116700.0,0.62047782]
[1758163493695,1.44334518,116710.0,116700.0,0.09689676]
[1758163493894,1.44334518,116710.0,116700.0,0.62047782]
[1758163498297,1.44334518,116710.0,116700.0,0.09689676]
[1758163498492,1.44334518,116710.0,116700.0,0.35868729]
[1758163498696,1.44334518,116710.0,116700.0,0.62047782]
[1758163498897,1.44334518,116710.0,116700.0,0.09689676]
[1758163499096,1.44334518,116710.0,116700.0,0.62047782]
[1758163502698,1.44334518,116710.0,116700.0,0.09689676]
[1758163502891,1.44334518,116710.0,116700.0,0.62047782]
[1758163504202,1.18155465,116710.0,116700.0,0.62047782]
[1758163504390,1.44334518,116710.0,116700.0,0.62047782]
[1758163506302,1.46443505,116710.0,116700.0,0.55900106]
[1758163506799,1.20264452,116710.0,116700.0,0.55900106]
[1758163506999,0.06308452,116710.0,116700.0,0.55900106]
[1758163507198,0.82055465,116710.0,116700.0,0.62047782]
[1758163507998,0.82055465,116710.0,116700.0,0.09689676]
[1758163508199,0.82055465,116710.0,116700.0,0.62047782]
[1758163508804,0.04199465,116710.0,116700.0,0.62047782]
[1758163508994,0.82055465,116710.0,116700.0,0.62047782]
[1758163509390,0.82055465,116710.0,116700.0,1.13326835]
[1758163509391,0.01974465,116710.0,116700.0,1.13326835]
[1758163509802,0.01974465,116710.0,116700.0,0.87247782]
[1758163510603,0.04109465,116710.0,116700.0,0.87247782]
[1758163511603,0.01974465,116710.0,116700.0,1.65103782]
[1758163513212,0.01974465,116710.0,116700.0,1.23327782]
[1758163515402,0.01974465,116710.0,116700.0,0.98327782]
[1758163515608,0.01974465,116710.0,116700.0,1.7805841]
[1758163515806,0.01974465,116710.0,116700.0,1.24849645]
[1758163517906,0.01974465,116710.0,116700.0,1.54849645]
[1758163518408,0.01974465,116710.0,116700.0,1.24849645]
[1758163519217,0.02009709,116730.0,116720.0,0.03597]
[1758163519409,0.02009709,116730.0,116720.0,0.35921709]
[1758163519611,0.04144709,116730.0,116720.0,0.35921709]
[1758163520408,0.04244709,116730.0,116720.0,0.35921709]
[1758163528213,0.04244709,116730.0,116720.0,0.29761197]
[1758163530314,0.04244709,116730.0,116720.0,0.03597]
[1758163530514,0.04244709,116730.0,116720.0,0.29761197]
[1758163531816,0.40324709,116730.0,116720.0,0.29761197]
[1758163534121,0.40324709,116730.0,116720.0,0.35921709]
[1758163537425,0.40324709,116730.0,116720.0,0.09757512]
[1758163537616,0.40324709,116730.0,116720.0,0.35921709]
[1758163537816,0.40334709,116730.0,116720.0,0.35921709]
[1758163538329,0.40334709,116730.0,116720.0,0.29761197]
[1758163540223,0.40334709,116730.0,116720.0,0.35921709]
[1758163542024,0.40334709,116730.0,116720.0,0.29761197]
[1758163542224,0.40334709,116730.0,116720.0,0.35921709]
[1758163543527,0.40334709,116730.0,116720.0,0.09757512]
[1758163543728,0.40334709,116730.0,116720.0,0.35921709]
[1758163550625,0.67254906,116730.0,116720.0,0.08478512]
[1758163551627,0.67254906,116730.0,116720.0,0.02318]
[1758163551928,0.67254906,116730.0,116720.0,0.28482197]
[1758163552524,0.67254906,116730.0,116720.0,0.02318]
[1758163552731,0.67254906,116730.0,116720.0,0.28482197]
[1758163555234,0.40334709,116730.0,116720.0,0.29865197]
[1758163556337,0.42470119,116730.0,116720.0,0.29865197]
[1758163556834,0.42470119,116730.0,116720.0,0.03701]
[1758163557035,0.42470119,116730.0,116720.0,0.29865197]
[1758163557528,0.40334709,116730.0,116720.0,0.29865197]
[1758163560238,0.42470293,116730.0,116720.0,0.29865197]
[1758163561141,0.6863449,116730.0,116720.0,0.29865197]
[1758163561640,0.9439049,116730.0,116710.0,0.01289]
[1758163561843,1.06229197,116720.0,116710.0,0.29746197]
[1758163562138,1.16155,116720.0,116710.0,0.29736197]
[1758163562638,1.42319197,116720.0,116710.0,0.29736197]
[1758163566451,1.16155,116720.0,116710.0,0.37436837]
[1758163567743,0.80075,116720.0,116710.0,0.1127264]
[1758163567952,0.80075,116720.0,116710.0,0.29736197]
[1758163575756,0.80075,116720.0,116710.0,0.29739313]
[1758163576154,0.80075,116720.0,116710.0,0.03572]
[1758163576355,0.80075,116720.0,116710.0,0.29739313]
[1758163578862,0.02243,116720.0,116710.0,0.29739313]
[1758163579055,0.80107,116720.0,116710.0,0.29739313]
[1758163581757,0.80107,116720.0,116710.0,0.37439953]
[1758163582559,1.06274313,116720.0,116710.0,0.37439953]
[1758163582951,0.80107,116720.0,116710.0,0.37439953]
[1758163585962,1.06274313,116720.0,116710.0,0.37439953]
[1758163586457,1.06274313,116720.0,116710.0,0.29739313]
[1758163588765,0.80107,116720.0,116710.0,0.29739313]
[1758163588958,1.06274313,116720.0,116710.0,0.29739313]
[1758163593767,0.80107,116720.0,116710.0,0.29739313]
[1758163593960,1.06274313,116720.0,116710.0,0.29739313]
[1758163594763,0.80107,116720.0,116710.0,0.29739313]
[1758163594960,1.06274313,116720.0,116710.0,0.29739313]
[1758163596565,1.06274313,116720.0,116710.0,0.37439953]
[1758163597373,0.80107,116720.0,116710.0,0.37439953]
[1758163597565,1.06274313,116720.0,116710.0,0.37439953]
[1758163601172,0.80107,116720.0,116710.0,0.1127264]
[1758163601368,0.80107,116720.0,116710.0,0.37439953]
[1758163601369,1.06274313,116720.0,116710.0,0.37439953]
[1758163603475,0.80107,116720.0,116710.0,0.37439953]
[1758163605178,0.80107,116720.0,116710.0,0.1127264]
[1758163605473,0.80107,116720.0,116710.0,0.37439953]
[1758163606278,0.80107,116720.0,116710.0,0.1127264]
[1758163606471,0.80107,116720.0,116710.0,0.37439953]
[1758163607278,1.06274313,116720.0,116710.0,0.1127264]
[1758163607477,1.42354313,116720.0,116710.0,0.37439953]
[1758163610280,1.42354313,116720.0,116710.0,0.1127264]
[1758163610472,1.42354313,116720.0,116710.0,0.37439953]
[1758163612083,1.16187,116720.0,116710.0,0.37439953]
[1758163612376,1.42354313,116720.0,116710.0,0.37439953]
[1758163614280,1.42354313,116720.0,116710.0,0.29739313]
[1758163615277,1.42354313,116720.0,116710.0,1.15739313]
[1758163616078,1.42354313,116720.0,116710.0,0.41739313]
[1758163624980,1.42354313,116720.0,116710.0,0.15572]
[1758163625183,0.02243,116720.0,116710.0,1.28986626]
[1758163625487,0.0001,116720.0,116710.0,2.01986626]
[1758163627992,0.0001,116720.0,116710.0,2.79814626]
[1758163630587,0.0001,116720.0,116710.0,2.26814626]
[1758163634495,0.0001,116720.0,116710.0,2.80814626]
[1758163634695,0.0001,116720.0,116710.0,2.88515266]
[1758163634994,0.0001,116720.0,116710.0,2.90244483]
[1758163635795,0.0001,116720.0,116710.0,2.64071816]
[1758163636094,0.0001,116720.0,116710.0,2.56371176]
[1758163636695,0.0001,116720.0,116710.0,2.64071816]
[1758163641199,0.0001,116720.0,116710.0,2.47635536]
[1758163641498,0.0001,116720.0,116710.0,2.39071816]
[1758163645609,0.0001,116720.0,116710.0,2.31371176]
[1758163649109,0.0001,116720.0,116710.0,1.53543176]
[1758163654512,0.02242,116720.0,116710.0,1.00543176]
[1758163656919,0.02242,116720.0,116710.0,1.08243816]
[1758163659016,0.0001,116720.0,116710.0,1.08243816]
[1758163660219,0.02242,116720.0,116710.0,1.08243816]
[1758163666124,0.02242,116720.0,116710.0,0.82081857]
[1758163666324,0.02242,116720.0,116710.0,1.08243816]
[1758163667726,0.02242,116720.0,116710.0,1.00543176]
[1758163668425,0.02242,116720.0,116710.0,1.08243816]
[1758163676732,0.02242,116720.0,116710.0,1.00543176]
[1758163679835,0.02242,116720.0,116710.0,0.64463176]
[1758163680132,0.02242,116720.0,116710.0,1.00543176]
[1758163684639,0.02242,116720.0,116710.0,0.74381217]
[1758163684937,0.02242,116720.0,116710.0,1.00543176]
[1758163686631,0.02242,116720.0,116710.0,1.08243816]
[1758163688238,0.02242,116720.0,116710.0,1.07243816]
[1758163690144,0.0001,116720.0,116710.0,1.07243816]
[1758163697848,0.0001,116720.0,116710.0,1.33409079]
[1758163703751,0.0001,116720.0,116710.0,1.07245468]
[1758163704851,0.0001,116720.0,116710.0,0.81081857]
[1758163705052,0.0001,116720.0,116710.0,1.07245468]
[1758163707752,0.02261,116720.0,116710.0,0.73381217]
[1758163708054,0.02261,116720.0,116710.0,0.99544828]
[1758163709154,0.0001,116720.0,116710.0,0.99544828]
[1758163709352,0.02261,116720.0,116710.0,0.99544828]
[1758163709955,0.02261,116720.0,116710.0,0.73381217]
[1758163710155,0.02261,116720.0,116710.0,0.99544828]
[1758163711450,0.02261,116720.0,116710.0,0.73381217]
[1758163711658,0.02261,116720.0,116710.0,0.99544828]
[1758163713057,0.02261,116720.0,116710.0,1.07245468]
[1758163723861,0.02261,116720.0,116710.0,0.81081857]
[1758163724161,0.02261,116720.0,116710.0,1.07245468]
[1758163724660,0.02261,116720.0,116710.0,0.81081857]
[1758163724862,0.02261,116720.0,116710.0,1.07245468]
[1758163725866,0.02261,116720.0,116710.0,0.81081857]
[1758163726062,0.02261,116720.0,116710.0,1.07245468]
[1758163726760,0.02261,116720.0,116710.0,0.73381217]
[1758163726956,0.02261,116720.0,116710.0,0.99544828]
[1758163731568,0.02261,116720.0,116710.0,0.73381217]
[1758163731763,0.02261,116720.0,116710.0,0.99544828]
[1758163736477,0.02261,116720.0,116710.0,1.07245468]
[1758163740474,0.0001,116720.0,116710.0,1.07245468]
[1758163740870,0.0001,116720.0,116710.0,1.33409079]
[1758163741068,0.0001,116720.0,116710.0,1.07245468]
[1758163741377,0.0001,116720.0,116710.0,1.33409079]
[1758163746689,0.0001,116720.0,116710.0,1.25708439]
[1758163748589,0.0001,116720.0,116710.0,0.99544828]
[1758163748791,0.02288,116720.0,116710.0,0.99544828]
[1758163751178,0.02288,116720.0,116710.0,0.73381217]
[1758163751383,0.02288,116720.0,116710.0,0.99544828]
[1758163752187,0.02288,116720.0,116710.0,0.73381217]
[1758163752392,0.02288,116720.0,116710.0,1.07245468]
[1758163754197,0.02288,116720.0,116710.0,0.99544828]
[1758163755495,0.0001,116720.0,116710.0,0.99544828]
[1758163756798,0.0001,116720.0,116710.0,0.97815611]
[1758163757797,0.0001,116720.0,116710.0,0.97817161]
[1758163761396,0.0001,116720.0,116710.0,1.05517801]
[1758163765000,0.06815571,116740.0,116730.0,0.03508]
[1758163765196,0.04282906,116750.0,116740.0,0.03508]
[1758163765397,0.04272906,116750.0,116740.0,0.29673161]
[1758163765603,0.11042281,116750.0,116740.0,0.29673161]
[1758163765806,0.04272906,116750.0,116740.0,0.29673161]
[1758163766104,0.04272906,116750.0,116740.0,0.03508]
[1758163766407,0.04572906,116750.0,116740.0,0.29673161]
[1758163766598,0.06710503,116750.0,116740.0,0.29673161]
[1758163767001,0.06610503,116750.0,116740.0,0.29673161]
[1758163767404,0.06610503,116750.0,116740.0,0.03508]
[1758163767604,0.06610503,116750.0,116740.0,0.29673161]
[1758163768005,0.06710503,116750.0,116740.0,0.29673161]
[1758163769712,0.06710503,116750.0,116740.0,0.03508]
[1758163769913,0.06710503,116750.0,116740.0,0.29673161]
[1758163770310,0.13415499,116750.0,116740.0,0.29673161]
[1758163772318,0.91155499,116750.0,116740.0,0.29673161]
[1758163773014,0.91155499,116750.0,116740.0,0.03508]
[1758163773413,0.91155499,116750.0,116740.0,0.29673161]
[1758163776114,0.13415499,116750.0,116740.0,0.29673161]
[1758163776315,0.91151499,116750.0,116740.0,0.29673161]
[1758163776512,0.89013902,116750.0,116740.0,0.29673161]
[1758163778619,0.11277902,116750.0,116740.0,0.29673161]
[1758163779126,0.07004996,116750.0,116740.0,0.29673161]
[1758163779523,0.07004996,116750.0,116740.0,0.03508]
[1758163779729,0.09255996,116750.0,116740.0,0.29673161]
[1758163784229,0.07004996,116750.0,116740.0,0.29673161]
[1758163784528,0.07014996,116750.0,116740.0,0.29673161]
[1758163787440,0.07014996,116750.0,116740.0,0.03508]
[1758163787641,0.09265996,116750.0,116740.0,0.29673161]
[1758163798849,0.0031,116750.0,116740.0,0.65753161]
[1758163799144,0.0031,116750.0,116740.0,1.30314691]
[1758163799650,0.0031,116750.0,116740.0,1.38015331]
[1758163800750,0.0001,116750.0,116740.0,1.38015331]
[1758163801352,0.0001,116750.0,116740.0,2.15727331]
[1758163801558,0.0001,116750.0,116740.0,2.40727331]
[1758163801852,0.0001,116750.0,116740.0,2.77727331]
[1758163802748,0.0001,116760.0,116750.0,0.03413]
[1758163803053,0.77722,116770.0,116760.0,0.03413]
[1758163803250,0.77712,116770.0,116760.0,0.29578161]
[1758163804256,0.84520621,116770.0,116760.0,0.29578161]
[1758163804945,0.06908621,116770.0,116760.0,0.29578161]
[1758163805148,0.09182621,116770.0,116760.0,0.29578161]
[1758163806248,0.09382621,116770.0,116760.0,0.29578161]
[1758163806748,0.02574,116770.0,116760.0,0.29578161]
[1758163806953,0.003,116770.0,116760.0,0.29578161]
[1758163807151,0.003,116770.0,116760.0,0.03413]
[1758163807354,0.02574,116770.0,116760.0,0.29578161]
[1758163808648,0.003,116770.0,116760.0,0.29578161]
[1758163810658,0.02574,116770.0,116760.0,0.29578161]
[1758163814065,0.003,116770.0,116760.0,0.29578161]
[1758163814963,0.003,116770.0,116760.0,0.91823322]
[1758163815958,0.003,116770.0,116760.0,0.65658161]
[1758163819766,0.003,116770.0,116760.0,0.91779652]
[1758163820668,0.003,116770.0,116760.0,0.39493]
[1758163820967,0.003,116770.0,116760.0,0.91779652]
[1758163831177,0.003,116770.0,116760.0,1.69467652]
[1758163833069,0.003,116770.0,116760.0,0.91779652]
[1758163835877,0.003,116770.0,116760.0,1.51483028]
[1758163836075,0.003,116770.0,116760.0,2.24483028]
[1758163836277,0.04625827,116820.0,116810.0,0.03558]
[1758163836580,0.43528769,116840.0,116830.0,0.03558]
[1758163836581,0.03596,116840.0,116830.0,0.03558]
[1758163836779,0.02315,116840.0,116830.0,0.35843017]
[1758163836979,0.02315,116840.0,116830.0,1.13527017]
[1758163837380,0.02315,116840.0,116830.0,1.07385326]
[1758163837883,0.02515,116840.0,116830.0,1.07385326]
[1758163838379,0.002,116840.0,116830.0,1.69608652]
[1758163838577,0.002,116840.0,116830.0,2.61608652]
[1758163838776,0.002,116840.0,116830.0,2.67750343]
[1758163838977,0.002,116840.0,116830.0,2.61608652]
[1758163839182,0.002,116840.0,116830.0,2.67750343]
[1758163839484,0.002,116840.0,116830.0,2.36608652]
[1758163839878,0.003,116840.0,116830.0,2.36608652]
[1758163847100,0.003,116840.0,116830.0,1.84322]
[1758163847297,0.003,116840.0,116830.0,2.36608652]
[1758163850895,0.003,116840.0,116830.0,1.06638]
[1758163851204,0.003,116840.0,116830.0,2.36564652]
[1758163851899,0.003,116840.0,116830.0,1.84278]
[1758163852193,0.003,116840.0,116830.0,2.36564652]
[1758163855300,0.001,116840.0,116830.0,2.36564652]
[1758163855801,0.02335,116850.0,116840.0,0.03538]
[1758163855996,0.02315,116850.0,116840.0,0.55824652]
[1758163857101,0.38941,116860.0,116850.0,0.03558]
[1758163857301,0.38921,116860.0,116850.0,0.29701326]
[1758163857703,0.38921,116860.0,116850.0,0.03558]
[1758163857904,0.38921,116860.0,116850.0,0.29701326]
[1758163858404,0.65064326,116860.0,116850.0,0.29701326]
[1758163858604,0.39221,116860.0,116850.0,0.29701326]
[1758163859104,0.39421,116860.0,116850.0,0.29701326]
[1758163859501,0.38895,116860.0,116850.0,0.29701326]
[1758163860309,0.63895,116860.0,116850.0,0.29701326]
[1758163865111,0.65223,116860.0,116850.0,0.28401326]
[1758163865305,0.67232076,116860.0,116850.0,0.28401326]
[1758163866905,0.67232076,116860.0,116850.0,0.02258]
[1758163867106,0.67232076,116860.0,116850.0,0.28401326]
[1758163867814,0.67232076,116860.0,116850.0,0.02258]
[1758163868021,0.67232076,116860.0,116850.0,0.28401326]
[1758163868204,0.65223,116860.0,116850.0,0.28401326]
[1758163868406,0.67238247,116860.0,116850.0,0.28401326]
[1758163869716,0.93381573,116860.0,116850.0,0.28401326]
[1758163870910,0.67238247,116860.0,116850.0,0.28401326]
[1758163872718,0.03579,116850.0,116840.0,0.02165]
[1758163872914,1.45433573,116850.0,116840.0,0.28298326]
[1758163874622,1.45533573,116850.0,116840.0,0.28298326]
[1758163875013,1.45633573,116850.0,116840.0,0.28298326]
[1758163876223,0.03579,116840.0,116830.0,0.0001]
[1758163876413,0.03579,116830.0,116820.0,0.02165]
[1758163876720,1.45433573,116830.0,116820.0,0.28298326]
[1758163877623,1.45433573,116830.0,116810.0,0.27890115]
[1758163877816,0.65802326,116820.0,116810.0,0.30035115]
[1758163879125,0.65802326,116820.0,116810.0,0.30235115]
[1758163879922,0.39659,116820.0,116810.0,0.30217726]
[1758163880726,0.39659,116820.0,116810.0,0.30317726]
[1758163883625,0.361,116830.0,116820.0,0.013]
[1758163883823,1.15955,116830.0,116820.0,0.29580937]
[1758163884930,1.17283,116830.0,116820.0,0.29580937]
[1758163885127,1.43408937,116830.0,116820.0,0.02155]
[1758163885324,1.43408937,116830.0,116820.0,0.02255]
[1758163885523,1.43408937,116830.0,116820.0,0.001]
[1758163886026,0.38351,116840.0,116830.0,0.03435]
[1758163886229,1.17599,116850.0,116840.0,0.03455]
[1758163886426,1.17579,116850.0,116840.0,0.29580937]
[1758163887734,0.001,116850.0,116840.0,1.25341034]
[1758163887924,0.001,116850.0,116840.0,1.63482725]
[1758163888125,0.001,116850.0,116840.0,2.15380788]
[1758163888325,0.002,116850.0,116840.0,2.15380788]
[1758163889232,0.001,116850.0,116840.0,2.09239097]
[1758163889832,0.001,116850.0,116840.0,2.00684937]
[1758163890131,0.0002,116860.0,116850.0,0.03482]
[1758163890432,0.45643,116870.0,116860.0,0.03462]
[1758163890631,0.45623,116870.0,116860.0,0.29587937]
[1758163892034,0.45623,116870.0,116860.0,0.03462]
[1758163892237,0.45623,116870.0,116860.0,0.29587937]
[1758163892636,0.45923,116870.0,116860.0,0.29587937]
[1758163893140,0.46123,116870.0,116860.0,0.29587937]
[1758163895037,0.46123,116870.0,116860.0,0.03462]
[1758163895238,0.46123,116870.0,116860.0,0.29587937]
[1758163897147,0.46123,116870.0,116860.0,0.03462]
[1758163897441,0.46123,116870.0,116860.0,0.29587937]
[1758163897926,0.46123,116870.0,116860.0,0.03462]
[1758163898131,0.46123,116870.0,116860.0,0.29587937]
[1758163899043,0.47432,116870.0,116860.0,0.29587937]
[1758163900443,0.46123,116870.0,116860.0,0.29587937]
[1758163902645,0.83512,116870.0,116860.0,0.28307937]
[1758163903237,0.82203,116870.0,116860.0,0.29587937]
[1758163904844,0.83512,116870.0,116860.0,0.03462]
[1758163905044,0.83512,116870.0,116860.0,0.29587937]
[1758163907045,0.005,116870.0,116860.0,0.92368746]
[1758163907243,0.005,116870.0,116860.0,1.30921446]
[1758163907439,0.005,116870.0,116860.0,1.22368746]
[1758163908745,0.005,116870.0,116860.0,2.00464746]
[1758163909138,0.002,116870.0,116860.0,2.00464746]
[1758163909338,0.002,116870.0,116860.0,2.00564746]
[1758163909540,0.0002,116880.0,116860.0,2.00564746]
[1758163909739,0.0001,116880.0,116870.0,0.29587937]
[1758163909945,0.74199,116890.0,116880.0,0.03482]
[1758163910244,1.26613937,116890.0,116870.0,0.0001]
[1758163910446,0.03436,116870.0,116860.0,0.30218746]
[1758163910747,0.03436,116870.0,116860.0,0.30208746]
[1758163910945,0.03436,116870.0,116860.0,0.31488746]
[1758163911150,0.03436,116870.0,116860.0,0.31288746]
[1758163911444,0.02127,116870.0,116860.0,0.31288746]
[1758163911843,0.02127,116870.0,116860.0,0.31388746]
[1758163913147,0.02127,116870.0,116860.0,0.31488746]
[1758163914244,1.15601,116880.0,116860.0,0.31488746]
[1758163914550,0.02127,116870.0,116860.0,0.05362809]
[1758163915349,0.02127,116870.0,116860.0,0.05262809]
[1758163915549,0.02127,116870.0,116860.0,0.31388746]
[1758163915943,0.02127,116870.0,116860.0,0.3760456]
[1758163916251,0.02127,116870.0,116860.0,0.11478623]
[1758163916549,0.02127,116870.0,116860.0,0.3760456]
[1758163916752,0.02127,116870.0,116860.0,0.3750456]
[1758163917255,0.02127,116870.0,116860.0,0.31388746]
[1758163917549,0.02127,116870.0,116860.0,0.31488746]
[1758163918553,0.02127,116870.0,116860.0,0.37617264]
[1758163920453,0.03488,116870.0,116860.0,0.36337264]
[1758163921450,0.03488,116870.0,116860.0,0.37617264]
[1758163921849,0.02127,116870.0,116860.0,0.37617264]
[1758163922354,0.03488,116870.0,116860.0,0.37617264]
[1758163922843,0.02127,116870.0,116860.0,0.37617264]
[1758163927357,0.02127,116870.0,116860.0,0.11491327]
[1758163927556,0.02127,116870.0,116860.0,0.37617264]
[1758163927956,0.02127,116870.0,116860.0,0.11491327]
[1758163928156,0.02127,116870.0,116860.0,0.37617264]
[1758163928354,0.03488,116870.0,116860.0,0.37617264]
[1758163928858,0.02127,116870.0,116860.0,0.37617264]
[1758163929660,0.02127,116870.0,116860.0,0.11491327]
[1758163929863,0.02127,116870.0,116860.0,0.37617264]
[1758163930660,0.02127,116870.0,116860.0,0.31488746]
[1758163931662,0.02127,116870.0,116860.0,0.05362809]
[1758163932064,0.02127,116870.0,116860.0,0.31488746]
[1758163934761,0.02127,116870.0,116860.0,0.67568746]
[1758163936968,0.02169,116880.0,116870.0,0.03409]
[1758163937169,0.02149,116880.0,116870.0,0.35663455]
[1758163937472,0.0351,116880.0,116870.0,0.35663455]
[1758163938365,0.02149,116880.0,116870.0,0.35663455]
[1758163938566,0.02149,116880.0,116870.0,0.09537518]
[1758163938768,0.38249,116890.0,116880.0,0.03389]
[1758163938965,0.38229,116890.0,116880.0,0.61769392]
[1758163939666,0.38229,116890.0,116880.0,0.55640874]
[1758163940166,0.38229,116890.0,116880.0,0.61769392]
[1758163940366,0.38329,116890.0,116880.0,0.61769392]
[1758163940863,0.38329,116890.0,116880.0,0.62618453]
[1758163941065,0.02349,116890.0,116880.0,0.62618453]
[1758163941768,0.002,116890.0,116880.0,1.7470355]
[1758163941970,0.002,116890.0,116880.0,1.97826912]
[1758163942178,0.002,116890.0,116880.0,1.94826912]
[1758163942374,0.002,116890.0,116880.0,2.19826912]
[1758163942870,0.0002,116900.0,116890.0,0.03409]
[1758163943077,0.38249,116910.0,116900.0,0.03389]
[1758163943266,0.38229,116910.0,116900.0,0.55560314]
[1758163943467,0.38229,116910.0,116900.0,0.6168072]
[1758163944184,0.38229,116910.0,116900.0,0.55560314]
[1758163944365,0.02149,116910.0,116900.0,0.91640314]
[1758163944568,0.02449,116910.0,116900.0,0.91640314]
[1758163945076,0.02549,116910.0,116900.0,0.91640314]
[1758163945776,0.02449,116910.0,116900.0,0.91640314]
[1758163945980,0.003,116910.0,116900.0,1.23846377]
[1758163946180,0.003,116910.0,116900.0,1.54846377]
[1758163946473,0.0002,116920.0,116910.0,0.013]
[1758163946781,0.02149,116920.0,116910.0,0.55580314]
[1758163947675,0.02249,116920.0,116910.0,0.55580314]
[1758163948277,0.02349,116920.0,116910.0,0.55580314]
[1758163949172,0.02349,116920.0,116910.0,0.02109]
[1758163949173,0.0371,116920.0,116910.0,0.02109]
[1758163949373,0.3979,116920.0,116910.0,0.28194657]
[1758163950273,0.90875657,116920.0,116910.0,0.28194657]
[1758163950580,0.6479,116920.0,116910.0,0.28194657]
[1758163951778,0.90875657,116920.0,116910.0,0.28194657]
[1758163952082,0.6479,116920.0,116910.0,0.28194657]
[1758163952378,1.42994,116920.0,116910.0,0.29494657]
[1758163952574,1.16633,116920.0,116910.0,0.55580314]
[1758163952780,0.38429,116920.0,116910.0,0.55580314]
[1758163953079,0.02349,116920.0,116910.0,0.55580314]
[1758163954577,0.002,116920.0,116910.0,2.54933971]
[1758163954881,0.002,116920.0,116910.0,2.80933971]
[1758163955284,0.002,116920.0,116910.0,2.89483011]
[1758163955777,0.002,116920.0,116910.0,2.34397354]
[1758163956082,0.002,116920.0,116910.0,2.25848314]
[1758163956882,0.001,116920.0,116910.0,2.85483011]
[1758163957581,0.03424301,116930.0,116920.0,0.1211732]
[1758163957874,0.03404301,116930.0,116920.0,1.25282977]
[1758163958579,0.03404301,116930.0,116920.0,1.16734657]
[1758163958781,0.03404301,116930.0,116920.0,1.41905971]
[1758163959481,0.03404301,116930.0,116920.0,1.78206453]
[1758163959672,0.03404301,116930.0,116920.0,1.52206453]
[1758163961875,0.03404301,116930.0,116920.0,1.59079511]
[1758163963278,0.04589186,116940.0,116920.0,1.98079511]
[1758163963483,0.04579186,116940.0,116930.0,1.74958904]
[1758163963683,0.04569186,116940.0,116930.0,1.74958904]
[1758163964779,0.04569186,116940.0,116930.0,1.66411314]
[1758163965179,0.04569186,116940.0,116930.0,1.66511314]
[1758163965683,0.04569186,116940.0,116930.0,2.01144581]
[1758163965882,0.04569186,116940.0,116930.0,2.71144581]
[1758163966085,0.04569186,116940.0,116930.0,2.71244581]
[1758163966985,0.04569186,116940.0,116930.0,2.96244581]
[1758163967390,0.04569186,116940.0,116930.0,2.97118293]
[1758163967889,0.03499504,116950.0,116940.0,0.0854687]
[1758163968089,0.03499504,116950.0,116940.0,1.08251314]
[1758163968090,0.07092504,116950.0,116940.0,1.08251314]
[1758163968288,0.07092504,116950.0,116940.0,2.01423314]